[Event "TUR-chT Superleague 2018"]
[Site "Ankara"]
[Date "2018.07.30"]
[Round "7"]
[White "Atakisi, Umut"]
[Black "Soysal, Serkan"]
[Result "0-1"]
[ECO "B40"]
[WhiteElo "2390"]
[BlackElo "2406"]
[Annotator "ChessBase"]
[PlyCount "138"]
[EventDate "2018.07.25"]
[EventType "team-tourn"]
[EventCountry "TUR"]
[SourceTitle "playchess.com"]
[Source "ChessBase"]
[SourceQuality "1"]
[TimeControl "40/5400+30:1800+30"]

1. e4 c5 2. Nf3 e6 3. g3 Nc6 4. Bg2 e5 5. O-O Nf6 6. Nc3 d6 7. d3 Be7 8. Bg5 O-O 9. Bxf6 Bxf6 10. Nd2 g6 11. Nc4 Bg7 12. a4 Nd4 13. Nd5 Be6 14. c3 Nc6 15. Nce3 Ne7 {[%emt 0:59:00]} 16. Nxe7+ {[%emt 1:06:00]} Qxe7 {[%emt 0:00:00]} 17. f4 {[%emt 0:00:30]} exf4 {[%emt 0:01:00]} 18. gxf4 {[%emt 0:00:30]} Rae8 {[%emt 0:03:30]} 19. f5 {[%emt 0:14:06]} Qg5 {[%emt 0:01:30]} 20. Rf3 {[%emt 0:01:40]} Bd7 {[%emt 0:06:30]} 21. Rg3 {[%emt 0:04:21]} Qf4 {[%emt 0:05:30]} 22. Rf3 {[%emt 0:01:00]} Qg5 {[%emt 0:03:30]} 23. Rg3 {[%emt 0:00:02]} Qd8 {[%emt 0:04:29]} 24. Qf1 {[%emt 0:00:33]} Bh6 {[%emt 0:00:36]} 25. Kh1 {[%emt 0:09:23]} Bxe3 {[%emt 0:04:59]} 26. Rxe3 {[%emt 0:00:05]} Bxf5 {[%emt 0:00:00]} 27. Qf4 {[%emt 0:00:46]} Qe7 {[%emt 0:00:54]} 28. Rae1 {[%emt 0:00:53]} Bd7 {[%emt 0:02:05]} 29. e5 {[%emt 0:01:14]} dxe5 {[%emt 0:00:30]} 30. Rxe5 {[%emt 0:00:30]} Qd6 {[%emt 0:00:00]} 31. Qg3 {[%emt 0:01:08]} Rxe5 {[%emt 0:01:13]} 32. Rxe5 {[%emt 0:00:31]} Bxa4 {[%emt 0:01:57]} 33. Bxb7 {[%emt 0:00:22]} Bc6+ {[%emt 0:04:12]} 34. Bxc6 {[%emt 0:00:04]} Qxc6+ {[%emt 0:00:00]} 35. Qg2 {[%emt 0:00:26]} Qd6 {[%emt 0:02:35]} 36. Qd5 {[%emt 0:01:25]} Qf6 {[%emt 0:01:02]} 37. Kg2 {[%emt 0:00:21]} Rb8 {[%emt 0:00:37]} 38. Re2 {[%emt 0:00:39]} Qb6 {[%emt 0:02:29]} 39. Re7 {[%emt 0:01:21]} Qxb2+ {[%emt 0:01:11]} 40. Kg3 {[%emt 0:00:00]} Rf8 {[%emt 0:01:11]} 41. Qxc5 {[%emt 0:01:40]} Qb8+ {[%emt 0:04:30]} 42. Qc7 {[%emt 0:02:30]} Qb5 {[%emt 0:02:30]} 43. c4 {[%emt 0:06:30]} Qf5 {[%emt 0:00:30]} 44. Qd7 {[%emt 0:01:30]} Qg5+ {[%emt 0:00:30]} 45. Kf3 {[%emt 0:00:30]} a5 {[%emt 0:06:30]} 46. Re8 {[%emt 0:01:30]} Qh5+ {[%emt 0:04:28]} 47. Ke3 {[%emt 0:01:40]} Qxh2 {[%emt 0:04:01]} 48. Rxf8+ {[%emt 0:02:28]} Kxf8 {[%emt 0:00:02]} 49. Qd8+ {[%emt 0:02:56]} Kg7 {[%emt 0:00:01]} 50. Qxa5 {[%emt 0:00:17]} Qg3+ {[%emt 0:01:52]} 51. Ke2 {[%emt 0:04:18]} Qg4+ {[%emt 0:01:18]} 52. Kd2 {[%emt 0:01:04]} Qf4+ {[%emt 0:01:10]} 53. Kc2 {[%emt 0:02:42]} Qf2+ {[%emt 0:00:55]} 54. Kb3 {[%emt 0:00:23]} Qd4 {[%emt 0:00:25]} 55. Kc2 {[%emt 0:01:30]} h5 {[%emt 0:02:15]} 56. c5 {[%emt 0:03:13]} Qe5 {[%emt 0:05:25]} 57. Qb6 {[%emt 0:02:11]} h4 {[%emt 0:00:33]} 58. c6 {[%emt 0:00:32]} h3 {[%emt 0:00:21]} 59. c7 {[%emt 0:00:46]} h2 {[%emt 0:00:29]} 60. Qc6 {[%emt 0:02:59]} Qe2+ {[%emt 0:01:02]} 61. Kc3 {[%emt 0:00:11]} Qe1+ {[%emt 0:00:34]} 62. Kc2 {[%emt 0:00:38]} Qe2+ {[%emt 0:00:54]} 63. Kc3 {[%emt 0:00:02]} Qe5+ {[%emt 0:00:27]} 64. d4 {[%emt 0:00:51]} Qe1+ {[%emt 0:00:30]} 65. Kc2 {[%emt 0:00:48]} h1=Q {[%emt 0:00:19]} 66. Qxh1 {[%emt 0:00:30]} Qxh1 {[%emt 0:00:30]} 67. c8=Q {[%emt 0:00:30]} Qe4+ {[%emt 0:00:30]} 68. Kc3 {[%emt 0:00:30]} Qe3+ {[%emt 0:00:00]} 69. Kc2 {[%emt 0:00:00]} Qxd4 {[%emt 0:00:00]} 0-1

[Event "TUR-chT Superleague 2018"]
[Site "Ankara"]
[Date "2018.07.30"]
[Round "7"]
[White "Koksal, Ege"]
[Black "Triapishko, Alexandr"]
[Result "1/2-1/2"]
[ECO "E63"]
[WhiteElo "2378"]
[BlackElo "2509"]
[Annotator "ChessBase"]
[PlyCount "84"]
[EventDate "2018.07.25"]
[EventType "team-tourn"]
[EventCountry "TUR"]
[SourceTitle "playchess.com"]
[Source "ChessBase"]
[SourceQuality "1"]
[TimeControl "40/5400+30:1800+30"]

1. d4 Nf6 2. Nf3 g6 3. g3 Bg7 4. Bg2 O-O 5. O-O d6 6. c4 Nc6 7. Nc3 a6 8. h3 Bd7 9. e4 e5 10. d5 Nd4 11. Be3 Qc8 12. Nxd4 exd4 13. Bxd4 Bxh3 14. e5 dxe5 15. Bxe5 c6 {[%emt 0:57:00]} 16. Qf3 {[%emt 1:07:00]} Bxg2 {[%emt 0:10:30]} 17. Kxg2 {[%emt 0:00:30]} Qg4 {[%emt 0:00:30]} 18. Qxg4 {[%emt 0:05:30]} Nxg4 {[%emt 0:00:30]} 19. Bxg7 {[%emt 0:00:30]} Kxg7 {[%emt 0:00:00]} 20. dxc6 {[%emt 0:00:00]} bxc6 {[%emt 0:11:00]} 21. Rad1 {[%emt 0:00:00]} Rad8 {[%emt 0:01:30]} 22. Ne4 {[%emt 0:01:30]} a5 {[%emt 0:04:20]} 23. Nc5 {[%emt 0:01:30]} Rfe8 {[%emt 0:04:21]} 24. Nb3 {[%emt 0:08:04]} a4 {[%emt 0:04:35]} 25. Na5 {[%emt 0:03:20]} h5 {[%emt 0:04:46]} 26. Nxc6 {[%emt 0:09:35]} Rxd1 {[%emt 0:00:30]} 27. Rxd1 {[%emt 0:00:30]} Re2 {[%emt 0:00:00]} 28. Rb1 {[%emt 0:00:00]} Rxf2+ {[%emt 0:00:54]} 29. Kg1 {[%emt 0:00:00]} Rf3 {[%emt 0:01:35]} 30. b4 {[%emt 0:01:45]} Rxg3+ {[%emt 0:02:55]} 31. Kh1 {[%emt 0:00:01]} h4 {[%emt 0:00:11]} 32. b5 {[%emt 0:01:23]} Nf2+ {[%emt 0:00:39]} 33. Kh2 {[%emt 0:00:30]} Ng4+ {[%emt 0:00:30]} 34. Kh1 {[%emt 0:00:00]} Rh3+ {[%emt 0:00:00]} 35. Kg1 {[%emt 0:00:19]} Rg3+ {[%emt 0:00:55]} 36. Kh1 {[%emt 0:00:02]} Nf2+ {[%emt 0:00:12]} 37. Kh2 {[%emt 0:00:30]} Ng4+ {[%emt 0:00:31]} 38. Kh1 {[%emt 0:00:00]} Rh3+ {[%emt 0:00:42]} 39. Kg1 {[%emt 0:00:00]} Rg3+ {[%emt 0:00:14]} 40. Kh1 {[%emt 0:00:00]} Nf2+ {[%emt 0:30:23]} 41. Kh2 {[%emt 0:00:01]} Ng4+ {[%emt 0:00:00]} 42. Kh1 {[%emt 0:00:30]} Nf2+ {[%emt 0:00:00]} 1/2-1/2

[Event "TUR-chT Superleague 2018"]
[Site "Ankara"]
[Date "2018.07.30"]
[Round "7"]
[White "Unuk, Laura"]
[Black "Mamedjarova, Zeinab"]
[Result "0-1"]
[ECO "D37"]
[WhiteElo "2355"]
[BlackElo "2345"]
[Annotator "NA"]
[PlyCount "74"]
[EventDate "2018.07.25"]
[EventType "team-tourn"]
[EventCountry "TUR"]
[SourceTitle "playchess.com"]
[Source "ChessBase"]
[SourceQuality "1"]
[TimeControl "40/5400+30:1800+30"]

1. d4 d5 2. Nf3 e6 3. c4 Be7 4. Nc3 Nf6 5. Bf4 O-O 6. e3 Nbd7 7. Qc2 dxc4 8. Bxc4 a6 9. e4 c5 10. e5 Nh5 11. Be3 cxd4 12. Bxd4 Nf4 13. h4 Qc7 14. Bb3 Qc6 {[%emt 0:56:30]} 15. O-O-O {[%emt 0:59:30]} b5 {[%emt 0:02:30]} 16. Ng5 {[%emt 0:06:30]} Bxg5 {[%emt 0:07:30]} 17. hxg5 {[%emt 0:01:30]} Ng6 {[%emt 0:00:30]} 18. f4 {[%emt 0:12:58]} Rd8 {[%emt 0:05:30]} 19. g4 {[%emt 0:01:28]} Ndf8 {[%emt 0:04:30]} 20. Rhf1 {[%emt 0:01:45]} Bb7 {[%emt 0:12:23]} 21. f5 {[%emt 0:01:36]} Nh4 {[%emt 0:00:02]} 22. f6 {[%emt 0:06:19]} Nf3 {[%emt 0:01:28]} 23. fxg7 {[%emt 0:00:47]} Kxg7 {[%emt 0:00:34]} 24. Qf2 {[%emt 0:05:20]} b4 {[%emt 0:04:14]} 25. Bd5 {[%emt 0:00:33]} Rxd5 {[%emt 0:00:20]} 26. Qxf3 {[%emt 0:00:24]} Qc7 {[%emt 0:00:17]} 27. Qf6+ {[%emt 0:01:56]} Kg8 {[%emt 0:00:03]} 28. g6 {[%emt 0:00:00]} fxg6 {[%emt 0:03:57]} 29. Kb1 {[%emt 0:03:26]} bxc3 {[%emt 0:00:30]} 30. Bxc3 {[%emt 0:00:00]} Rxd1+ {[%emt 0:01:00]} 31. Rxd1 {[%emt 0:00:00]} Qf7 {[%emt 0:00:31]} 32. Qg5 {[%emt 0:00:19]} Bd5 {[%emt 0:00:39]} 33. Qe3 {[%emt 0:01:22]} Qf3 {[%emt 0:01:06]} 34. Qg1 {[%emt 0:00:21]} a5 {[%emt 0:00:26]} 35. Bd2 {[%emt 0:00:46]} Rb8 {[%emt 0:01:02]} 36. Ka1 {[%emt 0:00:31]} Qe2 {[%emt 0:00:52]} 37. Bc3 {[%emt 0:00:59]} Qc4 {[%emt 0:00:11]} 0-1

[Event "TUR-chT Superleague 2018"]
[Site "Ankara"]
[Date "2018.07.30"]
[Round "7"]
[White "Balajayeva, Khanim"]
[Black "Celik, Eda"]
[Result "1-0"]
[ECO "C55"]
[WhiteElo "2332"]
[BlackElo "1864"]
[Annotator "NA"]
[PlyCount "79"]
[EventDate "2018.07.25"]
[EventType "team-tourn"]
[EventCountry "TUR"]
[SourceTitle "playchess.com"]
[Source "ChessBase"]
[SourceQuality "1"]
[TimeControl "40/5400+30:1800+30"]

1. e4 e5 2. Nf3 Nc6 3. Bc4 Nf6 4. d3 Be7 5. O-O O-O 6. Re1 d6 7. a4 Na5 8. Ba2 c5 9. Na3 Nc6 10. c3 a6 11. Bd2 Rb8 12. Nc2 h6 13. b4 b5 14. axb5 axb5 15. Ne3 Re8 16. Bd5 Qc7 17. bxc5 dxc5 18. c4 Nxd5 19. Nxd5 Qd6 20. cxb5 Rxb5 21. Qa4 {[%emt 0:59:30]} Rb8 {[%emt 0:57:00]} 22. Nxe5 {[%emt 0:00:30]} Bb7 {[%emt 0:19:30]} 23. Nf3 {[%emt 0:02:30]} Bf6 {[%emt 0:04:30]} 24. Rab1 {[%emt 0:02:30]} Ra8 {[%emt 0:01:30]} 25. Qc2 {[%emt 0:01:30]} Ba6 {[%emt 0:01:02]} 26. Bf4 {[%emt 0:11:30]} Qd8 {[%emt 0:04:38]} 27. Qxc5 {[%emt 0:02:30]} Rc8 {[%emt 0:02:36]} 28. Qa3 {[%emt 0:03:30]} Ra8 {[%emt 0:05:03]} 29. Rb6 {[%emt 0:01:24]} Bc4 {[%emt 0:02:57]} 30. Nxf6+ {[%emt 0:00:33]} Qxf6 {[%emt 0:02:39]} 31. Qc1 {[%emt 0:00:28]} Bxd3 {[%emt 0:04:18]} 32. Rxc6 {[%emt 0:00:11]} Qe7 {[%emt 0:00:10]} 33. e5 {[%emt 0:01:22]} Bb5 {[%emt 0:00:31]} 34. Rc7 {[%emt 0:00:44]} Qb4 {[%emt 0:00:18]} 35. h3 {[%emt 0:00:30]} Ra4 {[%emt 0:00:39]} 36. Bg3 {[%emt 0:00:25]} Ba6 {[%emt 0:00:34]} 37. Qc3 {[%emt 0:01:03]} Qb6 {[%emt 0:00:28]} 38. Qc6 {[%emt 0:01:51]} Qxc6 {[%emt 0:00:23]} 39. Rxc6 {[%emt 0:00:00]} Bb7 {[%emt 0:00:31]} 40. Rc3 {[%emt 0:00:00]} 1-0

[Event "TUR-chT Superleague 2018"]
[Site "Ankara"]
[Date "2018.07.30"]
[Round "7"]
[White "Selbes, Tarik"]
[Black "Bolat, Ahmet"]
[Result "1/2-1/2"]
[ECO "C10"]
[WhiteElo "2330"]
[BlackElo "2124"]
[Annotator "NA"]
[PlyCount "141"]
[EventDate "2018.07.25"]
[EventType "team-tourn"]
[EventCountry "TUR"]
[SourceTitle "playchess.com"]
[Source "ChessBase"]
[SourceQuality "1"]
[TimeControl "40/5400+30:1800+30"]

1. e4 e6 2. d4 d5 3. Nc3 dxe4 4. Nxe4 Nd7 5. Nf3 Ngf6 6. Nxf6+ Nxf6 7. Bg5 h6 8. Bh4 c5 9. c3 a6 10. Be2 cxd4 11. Qxd4 Qxd4 12. Nxd4 Bc5 13. Nb3 Bb6 14. O-O Bd7 15. Bf3 Bc6 16. Bxc6+ bxc6 17. Rad1 Rd8 18. Nd2 Ke7 19. Nc4 Bc7 20. Rfe1 Rd5 21. Ne3 Rxd1 22. Rxd1 Rb8 23. Nc4 Rb5 24. Bg3 {[%emt 1:00:00]} e5 {[%emt 0:58:30]} 25. Re1 {[%emt 0:08:30]} Nd7 {[%emt 0:01:30]} 26. f4 {[%emt 0:08:30]} f6 {[%emt 0:06:30]} 27. fxe5 {[%emt 0:02:30]} fxe5 {[%emt 0:00:30]} 28. Re2 {[%emt 0:04:53]} Ke6 {[%emt 0:01:30]} 29. Bf2 {[%emt 0:01:07]} Rd5 {[%emt 0:01:30]} 30. g4 {[%emt 0:03:35]} g6 {[%emt 0:01:30]} 31. Kg2 {[%emt 0:01:53]} Nf6 {[%emt 0:00:30]} 32. h3 {[%emt 0:00:11]} h5 {[%emt 0:02:30]} 33. g5 {[%emt 0:04:14]} Ng8 {[%emt 0:01:30]} 34. Ne3 {[%emt 0:01:22]} Rd8 {[%emt 0:03:30]} 35. Bg3 {[%emt 0:01:38]} Ne7 {[%emt 0:00:30]} 36. Nc2 {[%emt 0:05:47]} c5 {[%emt 0:00:30]} 37. Bf2 {[%emt 0:01:03]} Nd5 {[%emt 0:00:30]} 38. Bg3 {[%emt 0:02:03]} h4 {[%emt 0:00:30]} 39. c4 {[%emt 0:01:34]} hxg3 {[%emt 0:03:30]} 40. cxd5+ {[%emt 0:00:30]} Rxd5 {[%emt 0:00:30]} 41. Kxg3 {[%emt 0:01:10]} Rd3+ {[%emt 0:02:30]} 42. Kg4 {[%emt 0:01:30]} c4 {[%emt 0:00:30]} 43. h4 {[%emt 0:06:30]} Bb6 {[%emt 0:02:30]} 44. Ne1 {[%emt 0:04:05]} Rd4+ {[%emt 0:04:30]} 45. Kg3 {[%emt 0:00:06]} Kf5 {[%emt 0:12:30]} 46. Rf2+ {[%emt 0:01:17]} Rf4 {[%emt 0:00:00]} 47. Rxf4+ {[%emt 0:01:15]} exf4+ {[%emt 0:00:00]} 48. Kf3 {[%emt 0:00:00]} Bd4 {[%emt 0:00:30]} 49. b3 {[%emt 0:00:00]} c3 {[%emt 0:01:30]} 50. Nc2 {[%emt 0:00:16]} Bg1 {[%emt 0:07:30]} 51. b4 {[%emt 0:02:04]} Bb6 {[%emt 0:06:30]} 52. a4 {[%emt 0:00:25]} Ba7 {[%emt 0:00:30]} 53. a5 {[%emt 0:15:06]} Bg1 {[%emt 0:00:30]} 54. Ne1 {[%emt 0:01:48]} Be3 {[%emt 0:01:30]} 55. Nc2 {[%emt 0:00:45]} Ba7 {[%emt 0:02:00]} 56. Na3 {[%emt 0:00:39]} Bb8 {[%emt 0:01:56]} 57. b5 {[%emt 0:01:24]} axb5 {[%emt 0:01:13]} 58. Nxb5 {[%emt 0:00:07]} Be5 {[%emt 0:00:24]} 59. Na3 {[%emt 0:00:29]} Bd4 {[%emt 0:01:59]} 60. a6 {[%emt 0:00:13]} Bb6 {[%emt 0:00:25]} 61. Nc2 {[%emt 0:01:06]} Bc5 {[%emt 0:00:05]} 62. Ne1 {[%emt 0:00:43]} Be3 {[%emt 0:00:58]} 63. Nc2 {[%emt 0:00:58]} Bc5 {[%emt 0:00:03]} 64. Na3 {[%emt 0:00:09]} Be3 {[%emt 0:01:35]} 65. Nc2 {[%emt 0:00:50]} Bc5 {[%emt 0:00:18]} 66. Nb4 {[%emt 0:00:00]} Be3 {[%emt 0:00:58]} 67. Nc2 {[%emt 0:01:00]} Bc5 {[%emt 0:00:03]} 68. Na3 {[%emt 0:00:03]} Be3 {[%emt 0:00:09]} 69. Nc2 {[%emt 0:00:39]} Bc5 {[%emt 0:00:08]} 70. Nb4 {[%emt 0:00:49]} Be3 {[%emt 0:00:05]} 71. Nc2 {[%emt 0:00:12]} 1/2-1/2

[Event "TUR-chT Superleague 2018"]
[Site "Ankara"]
[Date "2018.07.30"]
[Round "7"]
[White "Yildiz Kadioglu, Betul Cemre"]
[Black "Ozoglu, Berker"]
[Result "1-0"]
[ECO "B31"]
[WhiteElo "2323"]
[BlackElo "1843"]
[Annotator "NA"]
[PlyCount "76"]
[EventDate "2018.07.25"]
[EventType "team-tourn"]
[EventCountry "TUR"]
[SourceTitle "playchess.com"]
[Source "ChessBase"]
[SourceQuality "1"]
[TimeControl "40/5400+30:1800+30"]

1. e4 c5 2. Nf3 Nc6 3. Bb5 g6 4. O-O Bg7 5. c3 a6 6. Be2 d5 7. d3 e5 8. Nbd2 Nf6 9. Re1 O-O 10. Bf1 Bg4 11. h3 Be6 12. exd5 Nxd5 13. Nc4 Qc7 14. Ng5 Rfe8 15. Nxe6 Rxe6 16. a4 h6 17. Ne3 Nf6 18. Ng4 Kh7 19. Nxf6+ Bxf6 20. Qf3 Bg7 21. Be3 Bf8 22. h4 f5 23. g3 Rd8 {[%emt 0:49:00]} 24. Bh3 {[%emt 1:08:00]} Rf6 {[%emt 0:02:30]} 25. Rad1 {[%emt 0:02:30]} Qf7 {[%emt 0:08:30]} 26. Bc1 {[%emt 0:00:30]} Qb3 {[%emt 0:00:30]} 27. g4 {[%emt 0:07:30]} Qxa4 {[%emt 0:02:30]} 28. gxf5 {[%emt 0:00:30]} Qxh4 {[%emt 0:00:30]} 29. Re4 {[%emt 0:00:30]} Qh5 {[%emt 0:01:30]} 30. Bg4 {[%emt 0:01:30]} Qh4 {[%emt 0:00:30]} 31. Qg2 {[%emt 0:04:30]} Rfd6 {[%emt 0:01:30]} 32. fxg6+ {[%emt 0:00:56]} Kh8 {[%emt 0:01:30]} 33. Be2 {[%emt 0:12:00]} Qf6 {[%emt 0:00:30]} 34. Rg4 {[%emt 0:00:00]} Bg7 {[%emt 0:04:30]} 35. Qh3 {[%emt 0:01:33]} Qf8 {[%emt 0:00:00]} 36. Bxh6 {[%emt 0:04:12]} Kg8 {[%emt 0:01:00]} 37. Bg5 {[%emt 0:01:12]} Rxg6 {[%emt 0:00:30]} 38. Bxd8 {[%emt 0:00:05]} Qxd8 {[%emt 0:00:30]} 1-0

[Event "TUR-chT Superleague 2018"]
[Site "Ankara"]
[Date "2018.07.30"]
[Round "7"]
[White "Ozen, Bahadir"]
[Black "Ozcan, Kaan"]
[Result "1-0"]
[ECO "A08"]
[WhiteElo "2317"]
[BlackElo "1523"]
[Annotator "NA"]
[PlyCount "87"]
[EventDate "2018.07.25"]
[EventType "team-tourn"]
[EventCountry "TUR"]
[SourceTitle "playchess.com"]
[Source "ChessBase"]
[SourceQuality "1"]
[TimeControl "40/5400+30:1800+30"]

1. g3 g6 2. Bg2 Bg7 3. d3 d5 4. Nf3 Nf6 5. O-O O-O 6. Nbd2 c5 7. e4 dxe4 8. dxe4 Nc6 9. Re1 Bg4 10. h3 Bxf3 11. Qxf3 Nd4 12. Qd1 Nd7 13. c3 Nc6 14. f4 Qc7 15. e5 e6 16. Ne4 Rfd8 17. Qe2 Bf8 18. Be3 Be7 19. Rad1 Rac8 20. Kh1 b6 21. g4 Ndb8 22. Nf6+ Bxf6 23. exf6 Rxd1 24. Rxd1 Rd8 25. Rf1 Qd6 26. Be4 Qf8 27. h4 {[%emt 0:28:30]} Qd6 {[%emt 1:26:25]} 28. h5 {[%emt 0:00:30]} Nd7 {[%emt 0:04:05]} 29. g5 {[%emt 0:04:30]} Ndb8 {[%emt 0:03:07]} 30. Qf3 {[%emt 0:01:30]} Rd7 {[%emt 0:06:18]} 31. Kg2 {[%emt 0:00:30]} Nd8 {[%emt 0:03:37]} 32. Rh1 {[%emt 0:00:30]} Na6 {[%emt 0:02:04]} 33. Qh3 {[%emt 0:00:30]} Qc7 {[%emt 0:00:44]} 34. hxg6 {[%emt 0:00:30]} fxg6 {[%emt 0:00:10]} 35. Bxg6 {[%emt 0:00:00]} Qb7+ {[%emt 0:01:04]} 36. Kf2 {[%emt 0:00:00]} Qd5 {[%emt 0:00:45]} 37. Bxh7+ {[%emt 0:00:00]} Kf8 {[%emt 0:00:14]} 38. Qh6+ {[%emt 0:00:00]} Ke8 {[%emt 0:00:22]} 39. Bg6+ {[%emt 0:00:30]} Rf7 {[%emt 0:00:00]} 40. Qh7 {[%emt 0:00:00]} Nc7 {[%emt 0:01:35]} 41. Bxf7+ {[%emt 0:03:00]} Nxf7 {[%emt 0:00:30]} 42. Qg8+ {[%emt 0:00:00]} Kd7 {[%emt 0:00:00]} 43. Qxf7+ {[%emt 0:01:00]} Kc6 {[%emt 0:01:00]} 44. Rh7 {[%emt 0:00:30]} 1-0

[Event "TUR-chT Superleague 2018"]
[Site "Ankara"]
[Date "2018.07.30"]
[Round "7"]
[White "Ozenir, Ekin Baris"]
[Black "Eren, Ataberk"]
[Result "1-0"]
[ECO "D00"]
[WhiteElo "2300"]
[BlackElo "2195"]
[Annotator "NA"]
[PlyCount "95"]
[EventDate "2018.07.25"]
[EventType "team-tourn"]
[EventCountry "TUR"]
[SourceTitle "playchess.com"]
[Source "ChessBase"]
[SourceQuality "1"]
[TimeControl "40/5400+30:1800+30"]

1. d4 Nf6 2. Bg5 d5 3. e3 c5 4. Bxf6 gxf6 5. dxc5 Nc6 6. c4 dxc4 7. Nd2 e6 8. Bxc4 Bxc5 9. Ngf3 O-O 10. O-O a6 11. Rc1 Be7 12. Qe2 Ne5 {[%emt 1:08:30]} 13. Rfd1 {[%emt 0:51:30]} b5 {[%emt 0:06:30]} 14. Nxe5 {[%emt 0:03:30]} fxe5 {[%emt 0:00:30]} 15. Bb3 {[%emt 0:00:30]} Bb7 {[%emt 0:04:25]} 16. Qh5 {[%emt 0:16:30]} Qb8 {[%emt 0:02:14]} 17. Bc2 {[%emt 0:03:30]} f5 {[%emt 0:00:19]} 18. e4 {[%emt 0:01:30]} Qe8 {[%emt 0:04:11]} 19. Qh3 {[%emt 0:02:30]} Kh8 {[%emt 0:09:07]} 20. exf5 {[%emt 0:02:16]} exf5 {[%emt 0:01:16]} 21. Bxf5 {[%emt 0:01:56]} Qf7 {[%emt 0:00:05]} 22. Rc7 {[%emt 0:01:39]} Bc8 {[%emt 0:01:21]} 23. Qxh7+ {[%emt 0:02:53]} Qxh7 {[%emt 0:00:02]} 24. Bxh7 {[%emt 0:00:00]} Bg4 {[%emt 0:02:18]} 25. f3 {[%emt 0:02:03]} Bd8 {[%emt 0:01:19]} 26. Rcc1 {[%emt 0:02:33]} Bb6+ {[%emt 0:01:01]} 27. Kh1 {[%emt 0:00:17]} Be6 {[%emt 0:00:00]} 28. Be4 {[%emt 0:00:36]} Rab8 {[%emt 0:00:15]} 29. b3 {[%emt 0:00:50]} a5 {[%emt 0:00:57]} 30. Nf1 {[%emt 0:01:23]} Bd4 {[%emt 0:00:11]} 31. Rc6 {[%emt 0:01:25]} Bg8 {[%emt 0:00:38]} 32. Rdc1 {[%emt 0:01:37]} a4 {[%emt 0:00:44]} 33. Rh6+ {[%emt 0:01:51]} Kg7 {[%emt 0:00:01]} 34. Rg6+ {[%emt 0:00:44]} Kh8 {[%emt 0:00:01]} 35. Rc7 {[%emt 0:00:56]} Bf7 {[%emt 0:00:14]} 36. Rh6+ {[%emt 0:00:39]} Kg8 {[%emt 0:00:55]} 37. Rh7 {[%emt 0:02:46]} axb3 {[%emt 0:00:53]} 38. axb3 {[%emt 0:00:33]} Bb6 {[%emt 0:00:29]} 39. Rd7 {[%emt 0:00:31]} Rbd8 {[%emt 0:00:41]} 40. Rhxf7 {[%emt 0:01:02]} Rxf7 {[%emt 0:00:23]} 41. Rxd8+ {[%emt 0:00:30]} Bxd8 {[%emt 0:00:30]} 42. Bd5 {[%emt 0:00:30]} Kf8 {[%emt 0:00:00]} 43. Bxf7 {[%emt 0:00:30]} Kxf7 {[%emt 0:00:00]} 44. Ne3 {[%emt 0:08:30]} Bb6 {[%emt 0:02:30]} 45. Nc2 {[%emt 0:03:30]} e4 {[%emt 0:02:30]} 46. fxe4 {[%emt 0:01:30]} Ke6 {[%emt 0:00:30]} 47. Na3 {[%emt 0:00:49]} b4 {[%emt 0:00:30]} 48. Nc4 {[%emt 0:00:11]} 1-0

[Event "TUR-chT Superleague 2018"]
[Site "Ankara"]
[Date "2018.07.30"]
[Round "7"]
[White "Tasdogen, Dincer"]
[Black "Isik, Alparslan"]
[Result "1-0"]
[ECO "B07"]
[WhiteElo "2280"]
[BlackElo "2212"]
[Annotator "NA"]
[PlyCount "73"]
[EventDate "2018.07.25"]
[EventType "team-tourn"]
[EventCountry "TUR"]
[SourceTitle "playchess.com"]
[Source "ChessBase"]
[SourceQuality "1"]
[TimeControl "40/5400+30:1800+30"]

1. e4 d6 2. d4 Nf6 3. Bd3 e5 4. Nf3 exd4 5. Nxd4 g6 6. O-O Bg7 7. Nc3 O-O 8. Bf4 Re8 9. Qd2 Nc6 10. Nxc6 bxc6 11. Rfe1 Be6 12. Rad1 Qb8 13. b3 Qb4 14. Na4 c5 15. Qxb4 cxb4 16. Bd2 a5 17. e5 dxe5 18. Rxe5 Ng4 {[%emt 0:52:30]} 19. Re2 {[%emt 1:05:30]} Bd7 {[%emt 0:12:30]} 20. Nc5 {[%emt 0:08:30]} Bc6 {[%emt 0:01:30]} 21. h3 {[%emt 0:07:17]} Ne5 {[%emt 0:07:30]} 22. Rde1 {[%emt 0:00:01]} Rad8 {[%emt 0:04:30]} 23. Bf4 {[%emt 0:04:58]} f6 {[%emt 0:09:09]} 24. Bxe5 {[%emt 0:00:23]} Rxe5 {[%emt 0:01:13]} 25. Rxe5 {[%emt 0:02:21]} fxe5 {[%emt 0:00:30]} 26. Ne6 {[%emt 0:00:04]} Rd5 {[%emt 0:09:01]} 27. Bc4 {[%emt 0:02:37]} Rd2 {[%emt 0:00:45]} 28. Nd4+ {[%emt 0:01:22]} Bd5 {[%emt 0:00:38]} 29. Nf3 {[%emt 0:00:01]} Rxc2 {[%emt 0:00:58]} 30. Bxd5+ {[%emt 0:00:13]} Kf8 {[%emt 0:00:12]} 31. Nxe5 {[%emt 0:01:33]} Ke7 {[%emt 0:02:12]} 32. Nd3+ {[%emt 0:01:00]} Kd6 {[%emt 0:00:31]} 33. Bc4 {[%emt 0:01:02]} Rxa2 {[%emt 0:00:26]} 34. Re6+ {[%emt 0:00:46]} Kd7 {[%emt 0:00:30]} 35. Nc5+ {[%emt 0:00:00]} Kd8 {[%emt 0:00:00]} 36. Bb5 {[%emt 0:00:40]} c6 {[%emt 0:00:01]} 37. Rxc6 {[%emt 0:00:00]} 1-0

[Event "TUR-chT Superleague 2018"]
[Site "Ankara"]
[Date "2018.07.30"]
[Round "7"]
[White "Uzumcu, Ahmet Utku"]
[Black "Kara, Yanki"]
[Result "0-1"]
[ECO "B06"]
[WhiteElo "2261"]
[BlackElo "2120"]
[Annotator "NA"]
[PlyCount "64"]
[EventDate "2018.07.25"]
[EventType "team-tourn"]
[EventCountry "TUR"]
[SourceTitle "playchess.com"]
[Source "ChessBase"]
[SourceQuality "1"]
[TimeControl "40/5400+30:1800+30"]

1. e4 g6 2. d4 Bg7 3. Nc3 d6 4. f4 a6 5. Be2 Nd7 6. Bf3 c5 7. dxc5 Nxc5 8. Nge2 Nf6 9. O-O O-O 10. h3 Rb8 11. Be3 Nfd7 12. a4 b6 13. g4 Bb7 14. Qd2 b5 15. axb5 axb5 16. Ng3 b4 17. Na4 Qc7 {[%emt 0:55:00]} 18. Nxc5 {[%emt 1:11:00]} Nxc5 {[%emt 0:01:30]} 19. Rab1 {[%emt 0:06:30]} Rfc8 {[%emt 0:03:30]} 20. b3 {[%emt 0:05:00]} Qb6 {[%emt 0:14:30]} 21. Qf2 {[%emt 0:03:22]} Ra8 {[%emt 0:00:30]} 22. f5 {[%emt 0:01:27]} Qc7 {[%emt 0:01:30]} 23. Bd4 {[%emt 0:03:12]} Nd7 {[%emt 0:01:30]} 24. fxg6 {[%emt 0:01:21]} fxg6 {[%emt 0:01:30]} 25. Be2 {[%emt 0:00:54]} Bxd4 {[%emt 0:02:30]} 26. Qxd4 {[%emt 0:00:28]} Ne5 {[%emt 0:00:00]} 27. Qxb4 {[%emt 0:00:15]} Qc3 {[%emt 0:02:19]} 28. Qxc3 {[%emt 0:03:23]} Rxc3 {[%emt 0:00:11]} 29. Kh2 {[%emt 0:00:25]} Rxc2 {[%emt 0:00:30]} 30. Rf2 {[%emt 0:01:15]} Raa2 {[%emt 0:01:54]} 31. Rbf1 {[%emt 0:00:24]} Ba6 {[%emt 0:00:27]} 32. Re1 {[%emt 0:01:18]} Nd3 {[%emt 0:00:13]} 0-1